fUST/lending_fUST_20240517
["ID","MTS","AMOUNT","RATE_DAILY","PERIOD"]
[327262766,1715947839238,-502.15949804,0.00017695,2]
[327262767,1715947839247,-546.81685219,0.00017695,2]
[327262768,1715947839257,-501.03023719,0.00017695,2]
[327262769,1715947839268,-538.70729869,0.00017695,2]
[327262770,1715947839278,-488.04384634,0.00017695,2]
[327262782,1715947840127,-13.96592983,0.00017695,2]
[327262783,1715947840138,-545.75969571,0.00017695,2]
[327262784,1715947840149,-509.08374634,0.00017695,2]
[327262785,1715947840158,-500.0,0.00017695,2]
[327262786,1715947840168,-500.60028182,0.00017695,2]
[327262787,1715947840177,-648.43,0.00017695,2]
[327262788,1715947840187,-502.61272761,0.00017695,2]
[327262789,1715947840197,-500.0,0.00017695,2]
[327262790,1715947840206,-632.1,0.00017695,2]
[327262791,1715947840216,-504.51616098,0.00017695,2]
[327262792,1715947840226,-505.38482525,0.00017695,2]
[327262793,1715947840236,-500.0,0.00017695,2]
[327262794,1715947840245,-444.92135975,0.00017695,2]
[327262795,1715947840255,-519.08145255,0.00017695,2]
[327262796,1715947840264,-506.03246422,0.00017695,2]
[327262797,1715947840274,-503.18999987,0.00017695,2]
[327262798,1715947840283,-502.27706116,0.00017695,2]
[327262799,1715947840292,-501.69221528,0.00017695,2]
[327262800,1715947840302,-151.0,0.00017695,2]
[327262801,1715947840312,-151.0,0.00017695,2]
[327262802,1715947840322,-201.200598,0.00017695,2]
[327262803,1715947840332,-201.200598,0.00017695,2]
[327262804,1715947840342,-201.200598,0.00017695,2]
[327262805,1715947840351,-201.200598,0.00017695,2]
[327262806,1715947840360,-204.818714,0.00017695,2]
[327262807,1715947840371,-638.37,0.00017695,2]
[327262808,1715947840381,-504.25557969,0.00017696,2]
[327262809,1715947840390,-500.0,0.00017696,2]
[327262810,1715947840399,-500.0,0.00017696,2]
[327262811,1715947840409,-503.9914699,0.00017696,2]
[327262812,1715947840418,-501.26744796,0.00017696,2]
[327262813,1715947840427,-620.79488073,0.00017696,2]
[327262814,1715947840436,-500.0,0.00017696,2]
[327262815,1715947840446,-502.28060412,0.00017696,2]
[327262816,1715947840456,-501.32302966,0.00017696,2]
[327262817,1715947840466,-389.71636517,0.00017696,2]
[327262818,1715947840477,-443.84182198,0.00017697,2]
[327262819,1715947840487,-606.13520966,0.00017705,2]
[327262820,1715947840497,-500.0,0.00017775,2]
[327262821,1715947840506,-500.0,0.00017775,2]
[327262822,1715947840516,-620.03,0.00017775,2]
[327262823,1715947840525,-456.98203459,0.00017775,2]
[327262824,1715947840535,-5870.94,0.00017775,2]
[327262825,1715947840544,-374.28222816,0.00017789,2]
[327262826,1715947840554,-500.0,0.00017873,2]
[327262827,1715947840564,-500.0,0.00017873,2]
[327262828,1715947840574,-579.69,0.00017873,2]
[327262829,1715947840584,-500.0,0.00017873,2]
[327262830,1715947840594,-151.0,0.00017873,2]
[327262831,1715947840604,-201.200598,0.00017873,2]
[327262832,1715947840613,-201.200598,0.00017873,2]
[327262833,1715947840623,-500.0,0.00017873,2]
[327262834,1715947840632,-2801.99,0.00017873,2]
[327262835,1715947840642,-500.0,0.00017873,2]
[327262836,1715947840658,-2527.87,0.00017873,2]
[327262837,1715947840668,-11567.98,0.00017873,2]
[327262838,1715947840677,-693.54,0.00017873,2]
[327262839,1715947840687,-550.99,0.00017873,2]
[327262840,1715947840696,-1819.59,0.00017873,2]
[327262841,1715947840706,-638.37,0.00017897,2]
[327262842,1715947840716,-10448.86120355,0.00017898,2]
[327262843,1715947840726,-151.0,0.00017898,2]
[327262844,1715947840736,-201.200598,0.00017898,2]
[327262845,1715947840747,-201.200594,0.00017898,2]
[327262846,1715947840756,-3716.85825261,0.000179,3]
[327262847,1715947840769,-30790.28283029,0.000179,3]
[327262848,1715947840779,-191.69,0.00017969,2]
[327262849,1715947840788,-180.39217617,0.00017969,2]
[327262850,1715947840798,-154.87609912,0.00017986,2]
[327262851,1715947840808,-155.28091236,0.00017986,2]
[327262852,1715947840817,-406.20357162,0.00017987,2]
[327262853,1715947840827,-155.09756869,0.00017988,2]
[327262854,1715947840836,-1402.37929891,0.00017988,2]
[327262855,1715947840847,-154.87609912,0.00017988,2]
[327262856,1715947840856,-492.70299531,0.00017988,2]
[327262857,1715947840866,-1444.60952783,0.00017988,2]
[327262858,1715947840875,-236.41159802,0.00017988,2]
[327262859,1715947840886,-1902.89360752,0.00017988,2]
[327262860,1715947840896,-1494.9080355,0.00017988,2]
[327262861,1715947840905,-895.80593484,0.00018,2]
[327262862,1715947840915,-189.86799103,0.00018,2]
[327262863,1715947840924,-1530.80175367,0.00018,2]
[327262864,1715947840936,-416.64966704,0.00018,2]
[327262887,1715947842950,-2319.45948352,0.00017694,2]
[327262888,1715947842960,-1484.75983493,0.00018,2]
[327262889,1715947842969,-264.32982817,0.00018047,2]
[327262890,1715947842981,-341.80538149,0.00018047,2]
[327262891,1715947842990,-500.0,0.00018049,2]
[327262892,1715947843000,-500.0,0.00018049,2]
[327262893,1715947843009,-620.03,0.00018049,2]
[327262894,1715947843018,-5870.94,0.00018049,2]
[327262895,1715947843028,-154.84515485,0.00018078,2]
[327262896,1715947843037,-546.0818079,0.00018143,2]
[327262897,1715947843049,-92.2881921,0.00018143,2]
[327262898,1715947843059,-1274.20209223,0.00018144,2]
[327262899,1715947843072,-4523.56622024,0.00018144,2]
[327262900,1715947843081,-500.0,0.00018147,2]
[327262901,1715947843090,-500.0,0.00018147,2]
[327262902,1715947843101,-500.0,0.00018147,2]
[327262903,1715947843110,-2801.99,0.00018147,2]
[327262904,1715947843119,-500.0,0.00018147,2]
[327262905,1715947843128,-1007.96520378,0.00018147,2]
[327262915,1715947846187,-471.37355978,0.00016777,2]
[327262916,1715947846199,-28.62644022,0.00016777,2]
[327262917,1715947846209,-500.0,0.00017051,2]
[327262918,1715947846218,-451.9803429,0.00017325,2]
[327262919,1715947898192,150.72868836,0.00022899,120]
[327262920,1715948044604,522.53720072,9.999e-05,2]
[327262921,1715948064455,484.17453208,9.999e-05,2]
[327262922,1715948082944,158.49484679,9.999e-05,2]
[327262925,1715948456114,675.749847,9.999e-05,2]
[327262926,1715948556722,158.49484679,9.999e-05,2]
[327262927,1715948831152,-675.749847,0.0001552,2]
[327262928,1715948831172,-186.340877,0.00015521,2]
[327262929,1715948831194,-159.93639401,0.00015852,2]
[327262930,1715948831214,-1566.9699638,0.00015853,2]
[327262932,1715949014293,177.8,0.00010959,2]
[327262933,1715949024819,889.01,0.00010959,2]
[327262958,1715949032185,-675.749847,0.00015871,2]
[327263011,1715949038474,-13515.97454494,0.00015872,2]
[327263013,1715949038486,-11384.02545506,0.00015872,2]
[327263015,1715949038495,-165.78079375,0.00016676,2]
[327263017,1715949038504,-627.74443753,0.00016677,2]
[327263018,1715949038514,-2595.37774588,0.00016776,2]
[327263019,1715949038523,-835.08477091,0.00016776,2]
[327263020,1715949038532,-635.75,0.00016776,2]
[327263021,1715949038541,-10603.98,0.00016776,2]
[327263022,1715949038551,-1667.96,0.00016776,2]
[327263023,1715949038560,-505.38,0.00016776,2]
[327263024,1715949038570,-500.0,0.00016777,2]
[327263025,1715949038579,-500.0,0.00016777,2]
[327263026,1715949038589,-500.0,0.00016777,2]
[327263027,1715949038598,-500.0,0.00016777,2]
[327263028,1715949038607,-616.85,0.00016777,2]
[327263029,1715949038617,-500.0,0.00016777,2]
[327263030,1715949038626,-5161.51,0.00016777,2]
[327263031,1715949038635,-500.0,0.00016777,2]
[327263032,1715949038644,-272.07616121,0.00016777,2]
[327263033,1715949038653,-500.0,0.00016777,2]
[327263034,1715949038662,-150.0,0.00016849,3]
[327263035,1715949038672,-150.0,0.00016849,2]
[327263036,1715949038681,-290.08701393,0.00016949,2]
[327263037,1715949038690,-932.27671008,0.00016977,2]
[327263038,1715949038701,-250.72581895,0.00017048,2]
[327263039,1715949038710,-2662.77,0.00017048,2]
[327263040,1715949038719,-500.0,0.00017048,2]
[327263041,1715949038729,-505.38,0.00017048,2]
[327263042,1715949038738,-21835.46741018,0.00017049,2]
[327263043,1715949038748,-351.63,0.0001705,2]
[327263044,1715949038757,-619.93017747,0.0001705,2]
[327263045,1715949038766,-500.0,0.0001705,2]
[327263046,1715949038775,-500.0,0.0001705,2]
[327263047,1715949038784,-433.88,0.0001705,2]
[327263048,1715949038793,-204.62047253,0.0001705,2]
[327263049,1715949038802,-474.76837896,0.0001705,2]
[327263050,1715949038811,-2275.21,0.0001705,2]
[327263051,1715949038822,-500.0,0.0001705,2]
[327263052,1715949038832,-500.0,0.0001705,2]
[327263053,1715949038843,-500.0,0.0001705,2]
[327263054,1715949038853,-519.09,0.0001705,2]
[327263055,1715949038864,-303.8,0.0001705,2]
[327263056,1715949038873,-412.48,0.0001705,2]
[327263057,1715949038882,-529.92400365,0.0001705,2]
[327263058,1715949038891,-500.0,0.0001705,2]
[327263059,1715949038901,-502.29771368,0.0001705,2]
[327263060,1715949038911,-501.25720095,0.0001705,2]
[327263061,1715949038920,-500.0,0.0001705,2]
[327263062,1715949038930,-500.0,0.0001705,2]
[327263063,1715949038941,-510.74930335,0.0001705,2]
[327263064,1715949039121,-500.0,0.0001705,2]
[327263065,1715949039132,-500.0,0.0001705,2]
[327263066,1715949039143,-500.0,0.0001705,2]
[327263067,1715949039154,-538.70729869,0.0001705,2]
[327263068,1715949039164,-502.11095164,0.0001705,2]
[327263069,1715949039175,-502.15949804,0.0001705,2]
[327263070,1715949039185,-546.81685219,0.0001705,2]
[327263071,1715949039196,-501.03023719,0.0001705,2]
[327263072,1715949039206,-488.04384634,0.0001705,2]
[327263073,1715949039216,-500.0,0.0001705,2]
[327263074,1715949039226,-500.0,0.0001705,2]
[327263075,1715949039236,-635.75,0.0001705,2]
[327263076,1715949039246,-550.44,0.0001705,2]
[327263077,1715949039256,-10603.98,0.0001705,2]
[327263078,1715949039266,-1667.96,0.0001705,2]
[327263079,1715949039276,-500.0,0.0001705,2]
[327263080,1715949039287,-500.0,0.0001705,2]
[327263081,1715949039297,-500.0,0.00017051,2]
[327263082,1715949039307,-500.0,0.00017051,2]
[327263083,1715949039317,-500.0,0.00017051,2]
[327263084,1715949039326,-616.85,0.00017051,2]
[327263085,1715949039337,-500.0,0.00017051,2]
[327263086,1715949039347,-5161.51,0.00017051,2]
[327263087,1715949039357,-500.0,0.00017051,2]
[327263088,1715949039368,-150.0,0.00017061,2]
[327263089,1715949039378,-500.11958888,0.00017174,2]
[327263090,1715949039388,-154.82968734,0.00017224,2]
[327263091,1715949039398,-617.05276743,0.00017224,2]
[327263092,1715949039408,-521.9947916,0.00017224,2]
[327263093,1715949039418,-702.19428712,0.00017225,2]
[327263094,1715949039428,-155.02628739,0.00017225,2]
[327263095,1715949039438,-1884.51859878,0.00017226,2]
[327263096,1715949039448,-284.88862026,0.00017226,2]
[327263097,1715949039458,-154.82968734,0.00017226,2]
[327263098,1715949039468,-150.0,0.00017272,2]
[327263099,1715949039478,-505.38,0.00017321,2]
[327263100,1715949039489,-2662.77,0.00017322,2]
[327263101,1715949039499,-500.0,0.00017322,2]
[327263102,1715949039509,-155.2958884,0.00017324,2]
[327263103,1715949039519,-500.0,0.00017324,2]
[327263104,1715949039529,-500.0,0.00017324,2]
[327263105,1715949039539,-2275.21,0.00017324,2]
[327263106,1715949039549,-500.0,0.00017324,2]
[327263107,1715949039559,-500.0,0.00017324,2]
[327263108,1715949039569,-500.0,0.00017324,2]
[327263109,1715949039579,-500.0,0.00017324,2]
[327263110,1715949039588,-500.0,0.00017324,2]
[327263111,1715949039598,-500.0,0.00017324,2]
[327263112,1715949039607,-635.75,0.00017324,2]
[327263113,1715949039618,-550.44,0.00017324,2]
[327263114,1715949039628,-10603.98,0.00017324,2]
[327263115,1715949039638,-1667.96,0.00017324,2]
[327263116,1715949039647,-500.0,0.00017324,2]
[327263117,1715949039657,-500.0,0.00017325,2]
[327263118,1715949039667,-616.85,0.00017325,2]
[327263119,1715949039676,-500.0,0.00017325,2]
[327263120,1715949039686,-5161.51,0.00017325,2]
[327263121,1715949039695,-500.0,0.00017325,2]
[327263122,1715949039705,-290.08701389,0.00017404,2]
[327263123,1715949039714,-1237.29190451,0.000175,2]
[327263124,1715949039724,-2662.77,0.00017596,2]
[327263125,1715949039733,-500.0,0.00017596,2]
[327263127,1715949039743,-505.38,0.00017597,2]
[327263128,1715949039753,-500.0,0.00017598,2]
[327263130,1715949039762,-500.0,0.00017598,2]
[327263131,1715949039772,-2275.21,0.00017598,2]
[327263132,1715949039781,-500.0,0.00017598,2]
[327263133,1715949039791,-500.0,0.00017598,2]
[327263134,1715949039801,-168.18,0.00017598,2]
[327263135,1715949039811,-635.75,0.00017598,2]
[327263136,1715949039820,-550.44,0.00017598,2]
[327263137,1715949039830,-10603.98,0.00017598,2]
[327263138,1715949039840,-1667.96,0.00017598,2]
[327263139,1715949039850,-500.0,0.00017598,2]
[327263140,1715949039861,-328.9296571,0.00017599,2]
[327263141,1715949039871,-616.85,0.00017599,2]
[327263142,1715949039880,-500.0,0.00017599,2]
[327263143,1715949039889,-5161.51,0.00017599,2]
[327263144,1715949039899,-151.0,0.00017599,2]
[327263145,1715949039908,-151.0,0.00017599,2]
[327263146,1715949039918,-500.0,0.00017599,2]
[327263147,1715949039928,-150.0,0.00017847,2]
[327263148,1715949039938,-4221.46001999,0.00017848,2]
[327263149,1715949039947,-151.0,0.0001785,2]
[327263150,1715949039956,-151.0,0.0001785,2]
[327263151,1715949039966,-151.0,0.0001785,2]
[327263153,1715949039975,-213.567006,0.0001785,2]
[327263155,1715949039984,-290.08701389,0.00017859,2]
[327263157,1715949039994,-151.0,0.0001787,2]
[327263159,1715949040004,-151.0,0.0001787,2]
[327263161,1715949040013,-151.0,0.0001787,2]
[327263163,1715949040024,-2662.77,0.0001787,2]
[327263165,1715949040038,-500.0,0.0001787,2]
[327263167,1715949040047,-3097.84535399,0.00017871,3]
[327263169,1715949040056,-5997.51422066,0.00017871,2]
[327263171,1715949040066,-505.38,0.00017871,2]
[327263173,1715949040076,-1450.07697924,0.00017872,2]
[327263175,1715949040086,-500.0,0.00017872,2]
[327263177,1715949040096,-500.0,0.00017872,2]
[327263179,1715949040105,-2275.21,0.00017872,2]
[327263181,1715949040117,-500.0,0.00017872,2]
[327263183,1715949040127,-500.0,0.00017872,2]
[327263185,1715949040136,-635.75,0.00017872,2]
[327263187,1715949040146,-550.44,0.00017872,2]
[327263189,1715949040157,-151.0,0.00017872,2]
[327263191,1715949040166,-10603.98,0.00017872,2]
[327263193,1715949040176,-1667.96,0.00017872,2]
[327263195,1715949040186,-151.0,0.00017872,2]
[327263197,1715949040196,-470.66689487,0.00017872,2]
[327263199,1715949040205,-151.0,0.00017873,2]
[327263201,1715949040215,-151.0,0.00017873,2]
[327263202,1715949040225,-151.0,0.00017873,2]
[327263204,1715949040235,-616.85,0.00017873,2]
[327263206,1715949040245,-5161.51,0.00017873,2]
[327263209,1715949040255,-500.0,0.00017873,2]
[327263211,1715949040264,-10448.86120355,0.00017898,2]
[327263212,1715949040273,-151.0,0.00017898,2]
[327263213,1715949040282,-151.0,0.00017898,2]
[327263214,1715949040291,-151.0,0.00017898,2]
[327263215,1715949040301,-151.0,0.00017898,2]
[327263216,1715949040310,-151.0,0.00017898,2]
[327263217,1715949040319,-416.98047207,0.00017943,2]
[327263218,1715949040329,-299.42578253,0.00017965,2]
[327263219,1715949040338,-255.49964725,0.00017998,2]
[327263220,1715949040347,-509.62764446,0.00017998,2]
[327263221,1715949040357,-2785.94337812,0.00017999,2]
[327263222,1715949040368,-505.38,0.00017999,2]
[327263223,1715949040377,-895.80593484,0.00018,2]
[327263224,1715949040386,-189.86799103,0.00018,2]
[327263225,1715949040397,-410.26306288,0.00018144,2]
[327263226,1715949040406,-2662.77,0.00018144,2]
[327263227,1715949040416,-151.0,0.00018144,2]
[327263228,1715949040425,-151.0,0.00018144,2]
[327263229,1715949040434,-500.0,0.00018144,2]
[327263230,1715949040444,-5241.89848587,0.00018145,2]
[327263231,1715949040453,-155.00461033,0.00018145,2]
[327263232,1715949040462,-236.41159802,0.00018145,2]
[327263233,1715949040472,-151.0,0.00018145,2]
[327263234,1715949040481,-151.0,0.00018145,2]
[327263235,1715949040490,-151.0,0.00018145,2]
[327263236,1715949040500,-154.82968764,0.00018146,2]
[327263237,1715949040509,-155.22726935,0.00018146,2]
[327263239,1715949040519,-164.01982334,0.00018146,2]
[327263241,1715949040528,-184.05568912,0.00018146,2]
[327263243,1715949040537,-154.94365812,0.00018146,2]
[327263245,1715949040547,-500.0,0.00018146,2]
[327263247,1715949040557,-500.0,0.00018146,2]
[327263249,1715949040566,-2275.21,0.00018146,2]
[327263251,1715949040575,-185.14994234,0.00018146,2]
[327263253,1715949040585,-500.0,0.00018146,2]
[327263255,1715949040595,-635.75,0.00018146,2]
[327263257,1715949040605,-550.44,0.00018146,2]
[327263260,1715949040617,-10603.98,0.00018146,2]
[327263262,1715949040627,-1667.96,0.00018146,2]
[327263264,1715949040636,-616.85,0.00018147,2]
[327263266,1715949040646,-5161.51,0.00018147,2]
[327263268,1715949040655,-151.0,0.00018147,2]
[327263270,1715949040664,-500.0,0.00018147,2]
[327263272,1715949040674,-302.500073,0.00018241,2]
[327263274,1715949040683,-290.08701389,0.00018313,2]
[327263275,1715949040692,-505.38,0.00018351,2]
[327263278,1715949040702,-9556.33105858,0.00018352,2]
[327263280,1715949040711,-151.0,0.00018352,2]
[327263282,1715949040720,-186.83038505,0.00018353,2]
[327263284,1715949040729,-1350.02169683,0.00018353,2]
[327263285,1715949040739,-719.75352328,0.00018354,2]
[327263287,1715949040749,-1084.20890532,0.00018354,2]
[327263290,1715949040759,-600.0,0.00018411,2]
[327263291,1715949040768,-151.0,0.00018418,2]
[327263293,1715949040777,-151.0,0.00018418,2]
[327263295,1715949040786,-151.0,0.00018418,2]
[327263297,1715949040796,-2662.77,0.00018418,2]
[327263299,1715949040805,-500.0,0.00018418,2]
[327263301,1715949040814,-500.0,0.0001842,2]
[327263303,1715949040824,-500.0,0.0001842,2]
[327263305,1715949040834,-2275.21,0.0001842,2]
[327263307,1715949040843,-500.0,0.0001842,2]
[327263309,1715949040852,-635.75,0.0001842,2]
[327263311,1715949040861,-550.44,0.0001842,2]
[327263313,1715949040870,-10603.98,0.0001842,2]
[327263315,1715949040879,-1667.96,0.0001842,2]
[327263317,1715949040889,-151.0,0.00018421,2]
[327263319,1715949040897,-616.85,0.00018421,2]
[327263321,1715949040906,-5161.51,0.00018421,2]
[327263323,1715949040916,-151.0,0.00018421,2]
[327263325,1715949040926,-500.0,0.00018421,2]
[327263327,1715949040935,-600.0,0.00018603,2]
[327263329,1715949040944,-505.38,0.00018691,2]
[327263331,1715949040953,-151.0,0.00018692,2]
[327263333,1715949040963,-151.0,0.00018692,2]
[327263335,1715949040972,-300.407176,0.00018692,2]
[327263337,1715949040981,-2662.77,0.00018692,2]
[327263339,1715949040991,-500.0,0.00018692,2]
[327263341,1715949041000,-500.0,0.00018694,2]
[327263343,1715949041010,-500.0,0.00018694,2]
[327263345,1715949041018,-2275.21,0.00018694,2]
[327263347,1715949041032,-500.0,0.00018694,2]
[327263349,1715949041041,-635.75,0.00018694,2]
[327263351,1715949041051,-550.44,0.00018694,2]
[327263353,1715949041061,-10603.98,0.00018694,2]
[327263355,1715949041072,-1667.96,0.00018694,2]
[327263357,1715949041081,-616.85,0.00018695,2]
[327263359,1715949041091,-5161.51,0.00018695,2]
[327263361,1715949041100,-151.0,0.00018695,2]
[327263363,1715949041111,-500.0,0.00018695,2]
[327263365,1715949041123,-290.08701389,0.00018768,2]
[327263367,1715949041132,-600.0,0.00018794,2]
[327263369,1715949041142,-7005.78145115,0.00018868,2]
[327263371,1715949041151,-151.0,0.00018868,2]
[327263373,1715949041160,-2000.0,0.000189,2]
[327263374,1715949041169,-8885.49265622,0.000189,2]
[327263376,1715949041178,-505.38,0.00018965,2]
[327263378,1715949041187,-151.0,0.00018966,2]
[327263380,1715949041197,-151.0,0.00018966,2]
[327263382,1715949041206,-2662.77,0.00018966,2]
[327263384,1715949041215,-500.0,0.00018966,2]
[327263386,1715949041224,-1063.27701927,0.00018968,3]
[327263388,1715949041234,-500.0,0.00018968,2]
[327263390,1715949041244,-500.0,0.00018968,2]
[327263392,1715949041253,-2275.21,0.00018968,2]
[327263394,1715949041263,-500.0,0.00018968,2]
[327263396,1715949041272,-635.75,0.00018968,2]
[327263398,1715949041281,-550.44,0.00018968,2]
[327263400,1715949041290,-10603.98,0.00018968,2]
[327263402,1715949041299,-1094.81876972,0.00018968,2]
[327263472,1715949041955,-150.0,0.00016849,3]
[327263474,1715949041964,-573.14123028,0.00018968,2]
[327263476,1715949041974,-151.0,0.00018969,2]
[327263478,1715949041983,-616.85,0.00018969,2]
[327263480,1715949041992,-3750.90725559,0.00018969,2]
[327264411,1715949125989,658.06565203,9.999e-05,2]
[327264412,1715949196132,909.52383202,9.999e-05,2]
[327264414,1715949467039,719.86717686,9.999e-05,2]
[327264415,1715949472744,1084.37016178,0.000138,2]
[327264416,1715949497142,236.48555321,9.999e-05,2]
[327264417,1715949503559,154.7215013,9.999e-05,2]
[327264418,1715949506478,2795.18883811,0.00015,2]
[327264419,1715949512417,154.7215013,9.999e-05,2]
[327264420,1715949516406,452.46697714,9.999e-05,2]
[327264421,1715949518154,410.4004372,9.999e-05,2]
[327264422,1715949574112,658.06565203,9.999e-05,2]
[327264423,1715949578962,3000.0,0.00014431,2]
[327264424,1715949613514,226.212269,0.00014433,2]
[327264425,1715950016198,24900.0,0.00014428,2]
[327264426,1715950052277,-1900.55249373,0.00015382,2]
[327264437,1715950155989,910.77693166,0.00014668,2]
[327264461,1715950232466,-164.02781081,0.00015243,2]
[327264462,1715950232477,-2678.41581431,0.00015342,2]
[327264463,1715950232489,-669.50515835,0.00015343,2]
[327264464,1715950232500,-696.14293594,0.00015383,2]
[327264465,1715950232511,-5587.33036427,0.00015385,2]
[327264466,1715950232521,-2672.59229163,0.00015441,2]
[327264467,1715950232536,-6285.90046967,0.00015441,2]
[327264468,1715950232548,-154.7215013,0.00015442,2]
[327264469,1715950232560,-155.00461033,0.00015442,2]
[327264470,1715950232571,-255.49964725,0.00015442,2]
[327264471,1715950232582,-719.52036363,0.00015442,2]
[327264472,1715950232592,-771.35040439,0.00015442,2]
[327264473,1715950232603,-5997.51422066,0.00015442,2]
[327264474,1715950232614,-3060.90965728,0.00015442,2]
[327264475,1715950232625,-236.33764283,0.00015442,2]
[327264476,1715950232635,-1706.73185285,0.00015442,2]
[327264477,1715950232645,-184.59951435,0.00015442,2]
[327264478,1715950232656,-155.11480149,0.00015442,2]
[327264479,1715950232666,-456.66489781,0.00015442,2]
[327264480,1715950232676,-504.73795779,0.00015442,2]
[327264481,1715950232687,-1450.07697924,0.00015443,2]
[327264482,1715950232698,-500.11958888,0.00016,2]
[327264483,1715950232709,-1647.93813453,0.00016338,2]
[327264484,1715950232719,-500.0,0.00016438,2]
[327264485,1715950232730,-500.0,0.00016438,2]
[327264486,1715950232740,-500.0,0.00016438,2]
[327264487,1715950232751,-469.0431103,0.00016438,2]
[327264488,1715950232761,-500.0,0.00016438,2]
[327264489,1715950232771,-500.0,0.00016438,2]
[327264490,1715950232782,-168.18,0.00016438,2]
[327264491,1715950232793,-500.0,0.00016438,2]
[327264492,1715950232803,-500.0,0.00016438,2]
[327264493,1715950232816,-500.0,0.00016438,2]
[327264494,1715950232826,-500.98365874,0.00016438,2]
[327264495,1715950232836,-500.94154903,0.00016438,2]
[327264496,1715950232847,-500.0,0.00016438,2]
[327264497,1715950232857,-501.35915646,0.00016438,2]
[327264498,1715950232867,-500.0,0.00016438,2]
[327264499,1715950232879,-501.85098317,0.00016438,2]
[327264500,1715950232889,-504.05135305,0.00016438,2]
[327264501,1715950232899,-502.56156228,0.00016438,2]
[327264502,1715950232910,-503.68446537,0.00016438,2]
[327264503,1715950232920,-1521.89,0.00016438,2]
[327264504,1715950232930,-2440.88,0.00016438,2]
[327264505,1715950232941,-500.0,0.00016438,2]
[327264506,1715950232951,-502.53192493,0.00016438,2]
[327264507,1715950232962,-500.0,0.00016438,2]
[327264508,1715950232972,-514.70408881,0.00016438,2]
[327264509,1715950232982,-537.12583276,0.00016438,2]
[327264510,1715950232992,-328.9296571,0.00016438,2]
[327264511,1715950233003,-501.93450787,0.00016438,2]
[327264512,1715950233013,-253.76690719,0.00016438,2]
[327264513,1715950233023,-500.65962863,0.00016438,2]
[327264514,1715950233033,-502.19378689,0.00016438,2]
[327264515,1715950233043,-501.216286,0.00016438,2]
[327264516,1715950233054,-500.0,0.00016438,2]
[327264517,1715950233067,-500.0,0.00016438,2]
[327264518,1715950233077,-501.64087492,0.00016438,2]
[327264519,1715950233087,-429.61752755,0.00016438,2]
[327264520,1715950233098,-500.0,0.00016438,2]
[327264521,1715950233110,-500.0,0.00016438,2]
[327264522,1715950233120,-500.0,0.00016438,2]
[327264523,1715950233131,-514.04,0.00016438,2]
[327264524,1715950233322,-500.0,0.00016438,2]
[327264525,1715950233340,-500.0,0.00016438,2]
[327264526,1715950233350,-4360.04,0.00016438,2]
[327264527,1715950233359,-157.50948132,0.00016438,2]
[327264528,1715950233369,-9827.16,0.00016438,2]
[327264529,1715950233378,-500.0,0.00016438,2]
[327264530,1715950233387,-504.57,0.00016438,2]
[327264531,1715950233396,-589.18,0.00016438,2]
[327264532,1715950233405,-505.32131072,0.00016438,2]
[327264533,1715950233415,-500.0,0.00016711,2]
[327264534,1715950233424,-500.0,0.00016712,2]
[327264535,1715950233433,-500.0,0.00016712,2]
[327264536,1715950233443,-410.98829949,0.00016712,2]
[327264537,1715950233456,-500.0,0.00016712,2]
[327264538,1715950233465,-500.0,0.00016712,2]
[327264539,1715950233474,-500.0,0.00016712,2]
[327264540,1715950233483,-500.0,0.00016712,2]